bitfinex-derivatives/quotes_SOLF0:USTF0_20250626
["timestamp","ask_amount","ask_price","bid_price","bid_amount"]
[1750930277624,6.948,143.85,143.81,8.60827236]
[1750930277825,6.948,143.85,143.82,6.9494]
[1750930278225,6.948,143.85,143.81,8.60827236]
[1750930278426,6.948,143.85,143.81,15.55797236]
[1750930278928,6.9485,143.84,143.83,6.45495753]
[1750930279429,6.9487,143.84,143.81,6.45495753]
[1750930279819,6.9487,143.84,143.82,6.45495753]
[1750930280027,10.42258981,143.83,143.82,6.45495753]
[1750930280225,3.47358981,143.83,143.8,6.45495753]
[1750930281027,6.9497,143.82,143.8,6.45495753]
[1750930281617,6.9492,143.83,143.81,6.45495753]
[1750930281818,10.42278981,143.83,143.81,6.45495753]
[1750930282026,3.47358981,143.83,143.81,6.45495753]
[1750930282329,3.47358981,143.83,143.81,13.40465753]
[1750930282727,10.42278981,143.83,143.81,6.45495753]
[1750930282918,3.47358981,143.83,143.81,6.45495753]
[1750930283321,6.9489,143.84,143.81,13.40485753]
[1750930284229,6.949,143.83,143.81,6.45495753]
[1750930285029,6.9494,143.82,143.81,6.45495753]
[1750930287427,6.9492,143.83,143.81,6.45495753]
[1750930288126,6.9492,143.83,143.81,13.40475753]
[1750930288326,6.9492,143.83,143.81,6.45495753]
[1750930288727,6.9492,143.83,143.82,6.45495753]
[1750930292340,6.9494,143.82,143.81,6.45495753]
[1750930293032,6.9499,143.81,143.8,6.45495753]
[1750930293544,39.23358981,143.82,143.79,6.45495753]
[1750930293745,10.42398981,143.8,143.79,6.45495753]
[1750930294745,6.9504,143.8,143.79,6.45495753]
[1750930297553,35.76,143.82,143.79,6.45495753]
[1750930297756,39.23358981,143.85,143.78,8.60827236]
[1750930297954,39.23358981,143.85,143.82,6.45098358]
[1750930298155,6.9488,143.84,143.82,6.45098358]
[1750930298658,6.9488,143.84,143.83,6.45098358]
[1750930301354,46.18178981,143.85,143.83,13.39998358]
[1750930301748,46.18178981,143.85,143.84,6.45098358]
[1750930302356,10.42128981,143.86,143.84,13.39948358]
[1750930303558,3.47358981,143.86,143.85,13.39898358]
[1750930303759,39.23358981,143.88,143.85,6.948]
[1750930304060,39.23358981,143.88,143.86,8.60131144]
[1750930304864,46.18038981,143.88,143.86,8.60131144]
[1750930305051,46.18038981,143.88,143.87,6.44925209]
[1750930306062,10.42038981,143.88,143.87,6.44925209]
[1750930306761,6.947,143.87,143.86,6.44925209]
[1750930308665,6.9479,143.86,143.84,6.44925209]
[1750930309459,6.948,143.85,143.84,6.44925209]
[1750930309966,6.9485,143.84,143.83,6.44925209]
[1750930310570,3.47358981,143.84,143.83,6.46434611]
[1750930310970,3.47358981,143.84,143.82,6.46434611]
[1750930311169,6.949,143.83,143.82,6.46434611]
[1750930311559,3.47358981,143.84,143.81,8.60131144]
[1750930311760,3.47358981,143.84,143.83,6.46994407]
[1750930312162,10.42208981,143.84,143.83,6.46994407]
[1750930312366,3.47358981,143.84,143.82,6.46994407]
[1750930312768,6.949,143.83,143.82,6.46994407]
[1750930312962,3.47358981,143.84,143.8,6.46994407]
[1750930313273,49.5957,143.86,143.8,6.46994407]
[1750930313274,3.47358981,143.81,143.8,6.46994407]
[1750930313472,3.47358981,143.81,143.78,8.60131144]
[1750930313861,3.47358981,143.81,143.8,6.47457113]
[1750930314574,10.42348981,143.81,143.8,6.47457113]
[1750930316172,10.42348981,143.81,143.8,7.113e-05]
[1750930316378,6.9514,143.78,143.76,8.60131144]
[1750930316567,6.9514,143.78,143.77,8.60131144]
[1750930318378,6.9518,143.77,143.76,8.60131144]
[1750930318683,3.47358981,143.79,143.76,12.93556691]
[1750930318879,3.47358981,143.79,143.78,8.64428182]
[1750930319074,39.19358981,143.79,143.78,8.64428182]
[1750930319277,39.19358981,143.79,143.74,12.93556691]
[1750930319578,2.45884521,143.78,143.72,18.59872811]
[1750930319886,3.47358981,143.77,143.73,6.9537]
[1750930320078,3.47358981,143.77,143.72,18.59872811]
[1750930320280,3.48137082,143.83,143.75,3.48137082]
[1750930320475,3.48137082,143.83,143.77,12.96199931]
[1750930320674,6.9497,143.82,143.78,6.9511]
[1750930321183,10.43057082,143.83,143.79,6.9508]
[1750930322287,3.48137082,143.83,143.76,15.37479931]
[1750930322682,39.20137082,143.83,143.76,15.37479931]
[1750930322883,6.9496,143.82,143.76,15.37479931]
[1750930323083,39.20137082,143.83,143.76,15.37479931]
[1750930323288,42.6691,143.83,143.8,6.9501]
[1750930323485,42.6691,143.83,143.77,12.96199931]
[1750930323886,35.72,143.83,143.77,12.96199931]
[1750930324081,736.58,143.93,143.77,12.96199931]
[1750930324082,41.65606293,143.86,143.8,16.44145992]
[1750930324387,35.72,143.86,143.81,12.96199931]
[1750930324582,42.6677,143.86,143.83,6.9487]
[1750930324976,35.72,143.86,143.83,6.9487]
[1750930325177,6.9482,143.85,143.83,6.9487]
[1750930325684,6.9482,143.85,143.82,6.9493]
[1750930326581,46.14716061,143.86,143.83,6.9489]
[1750930326783,35.72,143.86,143.83,6.9489]
[1750930327485,3.48024921,143.84,143.78,12.96199931]
[1750930327689,3.48024921,143.83,143.77,12.96199931]
[1750930327893,3.48024921,143.83,143.78,12.96199931]
[1750930328089,6.9496,143.82,143.78,12.96199931]
[1750930328394,35.72,143.84,143.76,15.37479931]
[1750930328579,6.9506,143.8,143.77,6.9516]
[1750930329390,3.48024921,143.79,143.76,2.4128]
[1750930329594,3.48024921,143.79,143.75,2.413]
[1750930330292,6.9523,143.77,143.75,2.413]
[1750930330493,3.48024921,143.79,143.75,2.413]
[1750930331996,6.9521,143.77,143.75,2.413]
[1750930332493,6.9516,143.78,143.75,2.413]
[1750930332695,3.48024921,143.81,143.75,15.37499931]
[1750930332895,3.48024921,143.81,143.77,6.9516]
[1750930333401,6.9508,143.8,143.77,6.9516]
[1750930334291,6.9508,143.8,143.78,6.9513]
[1750930334901,3.48024921,143.82,143.76,15.26249931]
[1750930335295,6.9503,143.81,143.78,6.951]
[1750930335496,3.48024921,143.82,143.78,6.951]
[1750930335802,6.95,143.81,143.78,6.951]
[1750930336098,6.95,143.81,143.79,6.9509]
[1750930336398,6.95,143.81,143.76,15.26249931]
[1750930336600,3.48024921,143.82,143.76,15.26249931]
[1750930336802,3.48024921,143.82,143.77,6.9516]
[1750930337303,6.9507,143.8,143.77,6.9516]
[1750930337501,3.48024921,143.82,143.77,6.9516]
[1750930337802,6.9516,143.78,143.76,2.3005]
[1750930338601,6.9516,143.78,143.76,9.2525]
[1750930338802,6.9511,143.79,143.76,9.2525]
[1750930339101,3.48024921,143.8,143.76,9.2525]
[1750930339700,6.951,143.79,143.76,9.2525]
[1750930340093,3.48024921,143.8,143.76,9.2525]
[1750930340297,6.9516,143.78,143.76,9.2525]
[1750930340704,3.48024921,143.8,143.75,9.3656]
[1750930340998,6.9521,143.77,143.75,9.3656]
[1750930341796,6.9521,143.77,143.75,2.413]
[1750930342602,6.9521,143.77,143.75,9.3658]
[1750930343511,3.48024921,143.78,143.74,38.3894]
[1750930343691,3.48024921,143.78,143.74,2.2894]
[1750930344204,3.48024921,143.78,143.72,41.7631612]
[1750930344692,6.9531,143.75,143.72,48.7171612]
[1750930344894,3.48024921,143.76,143.72,41.7631612]
[1750930345295,3.48024921,143.76,143.72,5.6631612]
[1750930345704,6.9536,143.74,143.72,5.6631612]
[1750930346003,3.48024921,143.76,143.72,5.6631612]
[1750930346204,6.9531,143.75,143.72,12.6171612]
[1750930346706,6.9533,143.74,143.72,12.6171612]
[1750930347307,3.48024921,143.76,143.72,12.6171612]
[1750930347609,3.48024921,143.76,143.73,6.9538]
[1750930348099,10.43294921,143.76,143.73,6.9538]
[1750930348303,3.48024921,143.76,143.72,12.6171612]
[1750930348499,3.48024921,143.76,143.72,5.6631612]
[1750930348706,3.48024921,143.76,143.72,18.62516051]
[1750930348900,6.9529,143.75,143.72,18.62516051]
[1750930349407,6.9529,143.75,143.74,8.62513192]
[1750930350804,3.48024921,143.78,143.73,12.96199931]
[1750930351108,3.48024921,143.78,143.75,8.62921311]
[1750930351307,3.48420291,143.76,143.73,12.96199931]
[1750930351605,3.48420291,143.76,143.6,2.3704]
[1750930351606,3.48420291,143.74,143.6,2.3704]
[1750930351805,10.43870291,143.72,143.63,2.3522]
[1750930352110,3.48420291,143.7,143.64,43.078]
[1750930352502,3.48420291,143.7,143.64,6.958]
[1750930352805,3.48420291,143.7,143.63,2.3522]
[1750930352806,6.9565,143.68,143.63,2.3522]
[1750930353510,6.9561,143.69,143.63,2.3522]
[1750930353816,636.74,143.75,143.65,3.48420291]
[1750930354104,6.9538,143.73,143.69,6.9555]
[1750930354305,3.48420291,143.74,143.67,3.48420291]
[1750930354610,6.9539,143.73,143.67,3.48420291]
[1750930354917,3.48420291,143.74,143.67,3.48420291]
[1750930355608,36.12,143.75,143.67,3.48420291]
[1750930355805,3.48420291,143.76,143.67,3.48420291]
[1750930356005,3.48420291,143.76,143.69,3.48420291]
[1750930356208,39.60420291,143.78,143.7,38.5365]
[1750930356407,36.12,143.78,143.7,38.5365]
[1750930356607,6.9516,143.78,143.75,6.9526]
[1750930357205,3.48420291,143.77,143.7,38.5365]
[1750930358117,6.9525,143.76,143.7,38.5365]
[1750930358912,6.9525,143.76,143.73,6.9534]
[1750930359507,6.9525,143.76,143.74,6.9532]
[1750930359814,6.9525,143.76,143.7,38.5365]
[1750930360017,6.9525,143.76,143.73,6.9534]
[1750930360214,6.9525,143.76,143.7,38.5365]
[1750930360817,6.9525,143.76,143.73,6.9534]
[1750930364404,6.9525,143.76,143.74,6.9532]
[1750930365013,6.9525,143.76,143.73,6.9535]
[1750930366717,5.22320961,143.78,143.72,6.9539]
[1750930367119,7.63040791,143.8,143.7,38.5365]
[1750930367120,6.9539,143.73,143.7,45.4914]
[1750930367315,6.9539,143.73,143.7,38.5365]
[1750930367512,5.22320961,143.76,143.7,38.5365]
[1750930367711,6.9537,143.74,143.71,6.9544]
[1750930368517,6.9529,143.75,143.72,6.9541]
[1750930369319,5.22320961,143.76,143.72,6.9541]
[1750930370220,6.9528,143.75,143.72,6.9541]
[1750930370420,5.22320961,143.76,143.72,6.9541]
[1750930372510,6.9532,143.74,143.72,6.9541]
[1750930372916,5.22320961,143.76,143.72,6.9541]
[1750930373117,6.9531,143.75,143.72,6.9541]
[1750930373312,5.22320961,143.76,143.72,6.9541]
[1750930374222,6.9534,143.74,143.72,6.9541]
[1750930374723,6.9532,143.75,143.72,6.9541]
[1750930375024,5.22320961,143.76,143.72,6.9541]
[1750930375824,6.9529,143.75,143.72,6.9541]
[1750930376325,6.9529,143.75,143.73,6.48360145]
[1750930376518,6.9525,143.76,143.73,13.43730145]
[1750930376717,5.22320961,143.75,143.69,12.95646004]
[1750930376918,5.22320961,143.71,143.66,4.7944]
[1750930377316,6.9558,143.69,143.66,11.7513]
[1750930377518,5.22320961,143.71,143.66,4.7944]
[1750930377718,5.22320961,143.73,143.67,12.95646004]
[1750930377920,5.22320961,143.71,143.66,17.75086004]
[1750930378124,7.63095286,143.76,143.66,17.75086004]
[1750930378323,5.22320961,143.71,143.66,17.75086004]
[1750930378527,6.9553,143.7,143.68,6.9561]
[1750930378826,5.22320961,143.71,143.66,41.9944]
[1750930379128,6.956,143.69,143.66,48.9512]
[1750930379727,5.22320961,143.71,143.66,41.9944]
[1750930379930,5.22320961,143.72,143.67,12.95646004]
[1750930380329,3.48492889,143.72,143.68,6.9559]
[1750930380531,3.48492889,143.72,143.66,54.95086004]
[1750930380731,600.72,143.82,143.68,12.95646004]
[1750930380732,3.48492889,143.74,143.68,12.95646004]
[1750930381032,3.48492889,143.8,143.71,16.44138893]
[1750930381241,6.9514,143.78,143.76,6.9523]
[1750930381424,3.48492889,143.8,143.76,6.9523]
[1750930381828,6.951,143.79,143.76,6.9523]
[1750930382127,3.48492889,143.8,143.76,6.9523]
[1750930382732,3.48492889,143.8,143.75,15.59387601]
[1750930382931,3.48492889,143.8,143.75,8.64127601]
[1750930383128,3.48492889,143.8,143.76,37.2]
[1750930383328,600.78,143.89,143.76,37.2]
[1750930383329,6.9501,143.81,143.78,6.9511]
[1750930383528,3.48492889,143.82,143.78,6.9511]
[1750930383730,7.63860923,143.85,143.79,6.9509]
[1750930383923,3.48492889,143.83,143.79,6.9509]
[1750930384327,3.48492889,143.83,143.78,15.59247601]
[1750930384929,3.48492889,143.81,143.78,15.59247601]
[1750930385135,3.48492889,143.83,143.78,8.64127601]
[1750930385533,10.43412889,143.83,143.8,6.9504]
[1750930386837,42.38426337,143.86,143.8,37.2]
[1750930387032,3.48492889,143.84,143.8,37.2]
[1750930387838,6.9494,143.83,143.8,37.2]
[1750930388040,3.47898529,143.84,143.8,37.2]
[1750930388240,3.47898529,143.82,143.79,4.7048]
[1750930389042,10.42868529,143.82,143.79,11.6554]
[1750930389546,3.47898529,143.82,143.79,4.7048]
[1750930389738,6.95,143.81,143.79,4.7048]
[1750930389938,3.47898529,143.82,143.79,4.7048]
[1750930390444,6.9504,143.8,143.79,4.7048]
[1750930391747,6.9504,143.8,143.77,37.18]
[1750930391944,3.47898529,143.84,143.76,45.82127601]
[1750930392149,3.47898529,143.81,143.77,6.9518]
[1750930392446,6.9507,143.8,143.77,6.9518]
[1750930393155,6.9504,143.8,143.77,6.9518]
[1750930393360,3.47898529,143.81,143.77,6.9518]
[1750930393652,3.47898529,143.81,143.76,52.77347601]
[1750930393858,3.47898529,143.79,143.76,37.18]
[1750930394265,6.9516,143.78,143.76,37.18]
[1750930394557,6.9516,143.78,143.75,11.5122]
[1750930395051,6.9519,143.77,143.75,11.5122]
[1750930395252,3.47898529,143.79,143.75,11.5122]
[1750930395560,3.47898529,143.79,143.76,6.9522]
[1750930396754,10.43028529,143.79,143.77,6.9516]
[1750930396958,3.47898529,143.79,143.75,41.6597]
[1750930397160,6.9516,143.78,143.75,41.6597]
[1750930397552,6.9516,143.78,143.75,48.6121]
[1750930398465,6.9516,143.78,143.76,6.9522]
[1750930398663,6.9516,143.78,143.75,41.6597]
[1750930398964,6.9516,143.78,143.75,48.6122]
[1750930399861,3.47898529,143.81,143.75,41.6597]
[1750930400060,3.47898529,143.82,143.76,8.64127601]
[1750930400367,6.9501,143.81,143.78,6.9509]
[1750930400571,3.47898529,143.82,143.78,6.9509]
[1750930402268,6.9501,143.81,143.78,6.9509]
[1750930402459,3.47898529,143.82,143.79,6.9507]
[1750930403065,10.42878529,143.82,143.79,6.9507]
[1750930403956,10.42878529,143.82,143.77,8.64127601]
[1750930403957,3.47898529,143.82,143.8,6.9503]
[1750930405064,10.42848529,143.82,143.8,6.9503]
[1750930405459,10.42848529,143.82,143.79,37.1]
[1750930405662,3.47898529,143.82,143.79,37.1]
[1750930406075,3.47898529,143.82,143.8,6.9501]
[1750930406966,10.42858529,143.82,143.8,6.9501]
[1750930408860,6.9491,143.83,143.81,6.9499]
[1750930409374,3.47898529,143.86,143.79,49.2202613]
[1750930409573,10.42668529,143.86,143.83,6.9486]
[1750930409873,3.47898529,143.87,143.8,8.64127601]
[1750930410076,6.9477,143.86,143.84,6.9481]
[1750930410571,3.47898529,143.87,143.84,6.9481]
[1750930410970,123.86841186,143.88,143.83,37.1]
[1750930411175,6.9482,143.85,143.83,37.1]
[1750930412166,6.9483,143.84,143.83,37.1]
[1750930413069,6.9481,143.85,143.83,37.1]
[1750930414376,3.47898529,143.87,143.83,37.1]
[1750930414377,6.9476,143.86,143.83,44.0486]
[1750930414577,6.9476,143.86,143.83,37.1]
[1750930414978,10.42608529,143.87,143.84,6.9481]
[1750930415573,6.9471,143.87,143.84,6.9482]
[1750930415880,0.24847,143.9,143.85,8.64127601]
[1750930416278,0.24847,143.9,143.86,6.9471]
[1750930416474,7.19427,143.9,143.83,49.2202613]
[1750930416777,0.24847,143.9,143.86,6.9472]
[1750930417373,0.24847,143.9,143.87,6.9469]
[1750930417884,7.19417,143.9,143.83,45.74127601]
[1750930418072,0.24847,143.9,143.83,45.74127601]
[1750930418273,0.24847,143.9,143.84,12.1202613]
[1750930418574,0.24847,143.9,143.88,6.9461]
[1750930419176,0.24847,143.9,143.87,37.08]
[1750930419879,6.9442,143.93,143.87,37.08]
[1750930420074,6.9442,143.93,143.88,2.4638]
[1750930420282,6.9442,143.93,143.9,6.9451]
[1750930420780,6.9445,143.92,143.9,6.9451]
[1750930423372,6.9443,143.93,143.9,6.9451]
[1750930425279,3.47898529,143.95,143.89,37.08]
[1750930425881,6.9438,143.94,143.89,37.08]
[1750930426282,6.9438,143.94,143.91,6.9447]
[1750930426583,2.3705,143.98,143.89,37.08]
[1750930426881,3.47898529,143.96,143.89,37.08]
[1750930427077,3.47898529,143.96,143.92,6.9441]
[1750930427282,3.47898529,143.94,143.9,36.48]
[1750930427484,3.47898529,143.94,143.89,36.48]
[1750930427783,6.9443,143.93,143.89,36.48]
[1750930427985,6.9443,143.93,143.88,2.4638]
[1750930428186,6.9443,143.93,143.89,36.48]
[1750930429291,6.9446,143.92,143.9,6.9452]
[1750930429790,6.9443,143.93,143.9,6.9452]
[1750930430380,6.9445,143.92,143.9,6.9452]
[1750930431685,6.9452,143.91,143.89,36.48]
[1750930432995,6.9454,143.9,143.89,36.48]
[1750930433180,3.47898529,143.91,143.88,2.4638]
[1750930433388,6.9459,143.89,143.88,2.4638]
[1750930433990,3.47898529,143.91,143.88,2.4638]
[1750930434192,3.47898529,143.93,143.88,2.4638]
[1750930434390,6.9447,143.92,143.88,2.4638]
[1750930435089,6.9447,143.92,143.89,6.9456]
[1750930435490,6.9447,143.92,143.88,2.4638]
[1750930435692,3.47898529,143.93,143.88,2.4638]
[1750930436085,6.9458,143.9,143.88,2.4638]
[1750930436795,6.9458,143.9,143.88,9.41]
[1750930437699,6.9458,143.9,143.88,2.4638]
[1750930438292,6.9452,143.91,143.88,9.4102]
[1750930438498,6.9452,143.91,143.88,2.4638]
[1750930438692,3.47898529,143.92,143.88,9.41]
[1750930438998,10.42388529,143.92,143.88,9.41]
[1750930439394,3.47898529,143.92,143.88,9.41]
[1750930439696,3.47898529,143.92,143.89,6.9459]
[1750930440087,10.42368529,143.92,143.89,6.9459]
[1750930441800,6.9451,143.91,143.88,9.4099]
[1750930442001,6.9451,143.91,143.88,2.4638]
[1750930442203,6.9451,143.91,143.89,6.9457]
[1750930442402,10.42378529,143.92,143.89,6.9457]
[1750930442593,10.42378529,143.92,143.88,2.4638]
[1750930442792,3.47898529,143.92,143.88,2.4638]
[1750930443306,6.9442,143.93,143.88,2.4638]
[1750930444712,10.42268529,143.94,143.88,2.4638]
[1750930444891,45.27398446,143.96,143.88,2.4638]
[1750930445093,39.95898529,143.96,143.88,8.89530128]
[1750930445293,46.90178529,143.96,143.88,8.89530128]
[1750930445496,3.47898529,143.97,143.9,6.43150128]
[1750930445698,3.47898529,143.97,143.91,36.48]
[1750930446503,6.9428,143.96,143.91,36.48]
[1750930447497,6.9428,143.96,143.93,6.9437]
[1750930447806,6.9426,143.96,143.93,6.9437]
[1750930449203,6.9426,143.96,143.94,6.9434]
[1750930449398,10.42128529,143.97,143.91,42.91150128]
[1750930449600,6.9423,143.97,143.92,6.43150128]
[1750930449797,6.9423,143.97,143.93,6.43150128]
[1750930450105,6.9423,143.97,143.94,6.9434]
[1750930450797,3.47898529,143.99,143.94,6.9434]
[1750930451002,6.9426,143.96,143.93,15.81710128]
[1750930451197,6.9426,143.96,143.93,8.87340128]
[1750930451599,6.9426,143.96,143.94,13.37500128]
[1750930451905,6.9426,143.96,143.94,6.9435]
[1750930453504,6.943,143.95,143.94,6.43150128]
[1750930453702,3.47898529,143.95,143.91,6.43150128]
[1750930454103,3.47898529,143.93,143.9,6.43150128]
[1750930454809,6.945,143.91,143.9,6.43150128]
[1750930455191,3.47898529,143.93,143.9,6.43150128]
[1750930455395,6.9449,143.92,143.9,6.43150128]
[1750930456208,6.9449,143.92,143.91,6.43150128]
[1750930459405,6.9449,143.92,143.9,8.64127601]
[1750930461613,6.945,143.91,143.9,8.64127601]
[1750930461806,3.47898529,143.93,143.9,8.64127601]
[1750930462006,3.47898529,143.93,143.92,6.48578808]
[1750930462212,10.42298529,143.93,143.92,6.48578808]
[1750930462414,3.47898529,143.95,143.91,8.64127601]
[1750930462719,6.9435,143.94,143.93,6.48566885]
[1750930463213,6.9433,143.95,143.93,6.48566885]
[1750930463605,6.9433,143.95,143.92,6.9444]
[1750930463606,3.47898529,143.96,143.94,6.48566885]
[1750930463800,7.85813263,143.95,143.93,6.48566885]
[1750930464015,3.47898529,143.96,143.93,6.48566885]
[1750930464209,7.85838017,143.95,143.93,6.48566885]
[1750930464414,6.9435,143.94,143.93,6.48566885]
[1750930465016,6.9441,143.93,143.92,8.64127601]
[1750930467220,6.9438,143.94,143.92,8.64127601]
[1750930467919,6.944,143.93,143.92,8.64127601]
[1750930469418,3.47898529,143.96,143.91,12.95646004]
[1750930469618,3.47898529,143.96,143.95,6.48768957]
[1750930469819,6.943,143.95,143.94,8.65025277]
[1750930470216,6.943,143.95,143.93,8.65025277]
[1750930470920,6.9435,143.94,143.93,8.65025277]
[1750930475218,14.82022106,143.94,143.93,6.48724326]
[1750930475418,5.37308523,143.94,143.92,6.48724326]
[1750930475613,3.47898529,143.93,143.92,6.48724326]
[1750930475820,10.42298529,143.93,143.92,6.48724326]
[1750930478420,6.9447,143.92,143.9,8.65025277]
[1750930480917,6.9447,143.92,143.9,15.59545277]
[1750930481320,6.9442,143.93,143.91,8.65025277]
[1750930481519,6.9442,143.93,143.91,15.59495277]
[1750930481717,6.9443,143.93,143.91,8.65025277]
[1750930481924,3.47898529,143.95,143.91,8.65025277]
[1750930482124,4.47212462,143.97,143.93,6.4889643]
[1750930482329,3.47898529,143.95,143.93,6.4889643]
[1750930482528,6.9435,143.94,143.93,6.4889643]
[1750930484232,10.42228529,143.95,143.93,6.4889643]
[1750930484532,3.47898529,143.95,143.93,6.4889643]
[1750930485134,6.9435,143.94,143.93,6.4889643]
[1750930485333,3.47898529,143.95,143.93,8.65025277]
[1750930486331,10.42238529,143.95,143.93,8.65025277]
[1750930486531,3.47898529,143.95,143.93,8.65025277]
[1750930487532,6.9435,143.94,143.93,8.65025277]
[1750930488727,6.9435,143.94,143.92,19.90066004]
[1750930489034,10.42228529,143.95,143.93,6.9438]
[1750930489233,10.42228529,143.95,143.94,8.65694832]
[1750930489423,15.78797516,143.95,143.94,8.65694832]
[1750930490132,12.30898987,143.95,143.94,8.65694832]
[1750930491835,6.9433,143.95,143.94,8.65694832]
[1750930492134,6.9433,143.95,143.93,6.9438]
[1750930492135,6.9433,143.95,143.93,19.90026004]
[1750930492433,6.9433,143.95,143.88,40.6511]
[1750930492434,36.46,143.98,143.94,12.95646004]
[1750930492627,3.47898529,143.99,143.96,8.65622453]
[1750930492827,7.88098991,143.98,143.96,8.65622453]
[1750930493024,3.47898529,143.99,143.96,8.65622453]
[1750930493220,7.8796687,143.98,143.96,8.65622453]
[1750930493420,3.47898529,143.99,143.96,8.65622453]
[1750930493627,3.47898529,143.99,143.98,6.49109118]
[1750930493828,18.30152886,143.99,143.98,6.49109118]
[1750930497739,14.82254357,143.99,143.98,6.49109118]
[1750930498037,18.30152886,143.99,143.98,6.49109118]
[1750930501247,6.9408,144.0,143.96,8.65622453]
[1750930501438,6.9408,144.0,143.99,6.48425014]
[1750930501841,12.33196114,144.0,143.99,6.48425014]
[1750930502645,6.9408,144.0,143.99,6.48425014]
[1750930504847,6.9411,143.99,143.98,6.48425014]
[1750930505941,6.9416,143.98,143.97,6.48425014]
[1750930511243,6.9423,143.97,143.96,8.65622453]
[1750930513748,6.9418,143.98,143.96,15.59872453]
[1750930513949,3.47898529,144.0,143.96,8.65622453]
[1750930514148,3.47898529,144.02,143.98,6.4776234]
[1750930514344,256.22571095,144.04,143.98,6.4776234]
[1750930514345,258.49592221,144.04,144.0,6.47702419]
[1750930514545,258.49592221,144.04,144.01,6.47702419]
[1750930514546,7.88693128,144.03,144.01,6.47702419]
[1750930514747,258.49592221,144.04,144.01,6.47702419]
[1750930515044,12.32452021,144.03,144.01,6.47702419]
[1750930515245,6.9395,144.03,144.01,6.47702419]
[1750930515453,6.9397,144.02,144.01,6.47702419]
[1750930520152,6.9401,144.01,144.0,6.47702419]
[1750930520856,6.9401,144.01,143.99,8.65622453]
[1750930521355,6.9406,144.0,143.99,8.65622453]
[1750930521752,6.9406,144.0,143.99,6.46865324]
[1750930522351,6.9411,143.99,143.98,11.01682453]
[1750930525658,6.9409,144.0,143.98,11.01682453]
[1750930525851,6.9409,144.0,143.99,8.65622453]
[1750930528056,6.9411,143.99,143.98,8.65622453]
[1750930528262,3.47898529,144.0,143.97,8.65622453]
[1750930528453,3.47898529,144.0,143.99,6.47411575]
[1750930529154,50.76617407,144.0,143.96,8.65622453]
[1750930529354,50.76617407,144.0,143.94,30.95646004]
[1750930529355,12.46663001,143.99,143.94,18.0]
[1750930529553,7.92820349,143.98,143.94,18.0]
[1750930529859,10.42198529,143.95,143.94,18.0]
[1750930530059,6.943,143.95,143.94,18.0]
[1750930531256,6.943,143.95,143.94,26.65622453]
[1750930531965,6.943,143.95,143.94,18.0]
[1750930535570,3.47898529,143.96,143.94,18.0]
[1750930535774,3.47898529,143.96,143.94,26.65622453]
[1750930536272,10.42178529,143.96,143.94,26.65622453]
[1750930536676,3.47898529,143.96,143.94,18.0]
[1750930537079,6.943,143.95,143.94,18.0]
[1750930537373,10.42198529,143.95,143.94,18.0]
[1750930549689,6.943,143.95,143.94,18.0]
[1750930549876,3.47898529,143.96,143.94,18.0]
[1750930549877,10.42168529,143.96,143.94,18.0]
[1750930551271,6.9423,143.97,143.94,18.0]
[1750930551478,8.84264029,143.98,143.94,18.0]
[1750930551679,3.47898529,143.98,143.94,18.0]
[1750930551880,10.42078529,143.98,143.94,18.0]
[1750930552081,10.42078529,143.98,143.94,29.06362453]
[1750930552374,10.42078529,143.98,143.95,6.943]
[1750930552579,6.9421,143.97,143.94,29.06362453]
[1750930553075,6.9421,143.97,143.94,36.00692453]
[1750930556487,6.9421,143.97,143.94,27.3507]
[1750930556889,6.9426,143.96,143.94,27.3507]
[1750930557090,6.9426,143.96,143.94,20.4074]
[1750930557994,6.9423,143.97,143.94,20.4074]
[1750930558592,6.9423,143.97,143.94,27.3509]
[1750930559093,6.9423,143.97,143.95,6.943]
[1750930559695,6.9423,143.97,143.94,29.7971]
[1750930559898,6.9426,143.96,143.94,29.7971]
[1750930560194,6.9426,143.96,143.94,38.45332453]
[1750930560390,9.16488711,143.96,143.94,38.45332453]
[1750930560901,9.16488711,143.96,143.94,31.51002453]
[1750930561195,6.9426,143.96,143.94,31.51002453]
[1750930561397,2.22228711,143.96,143.94,38.45342453]